[Event "*** SCC Grand Prix: Titled Tuesday Blitz"]
[Site "Chess.com"]
[Date "2020.10.06"]
[Round "5"]
[White "pfalcon1949"]
[Black "Igor_Bitensky"]
[Result "0-1"]
[WhiteElo "2023"]
[BlackElo "2331"]
[TimeControl "180+1"]
[EndTime "10:58:12 PDT"]
[Termination "Igor_Bitensky won by checkmate"]

1. c4 {[%clk 0:03:00.9]} 1... f5 {[%clk 0:02:55.4]} 2. Nc3 {[%clk 0:02:59.5]}
2... Nf6 {[%clk 0:02:55.8]} 3. g3 {[%clk 0:02:59.5]} 3... g6 {[%clk 0:02:56.3]}
4. Bg2 {[%clk 0:02:59.3]} 4... Bg7 {[%clk 0:02:57.2]} 5. d3 {[%clk 0:02:58.8]}
5... O-O {[%clk 0:02:57.7]} 6. e4 {[%clk 0:02:58.9]} 6... d6 {[%clk 0:02:55.8]}
7. Nge2 {[%clk 0:02:58.1]} 7... Nc6 {[%clk 0:02:54.3]} 8. O-O {[%clk 0:02:58.2]}
8... e5 {[%clk 0:02:54]} 9. exf5 {[%clk 0:02:45.5]} 9... gxf5 {[%clk 0:02:51.2]}
10. d4 {[%clk 0:02:44.7]} 10... Kh8 {[%clk 0:02:41.6]} 11. dxe5 {[%clk
0:02:43.2]} 11... dxe5 {[%clk 0:02:27.7]} 12. Bg5 {[%clk 0:02:42]} 12... Qxd1
{[%clk 0:02:09.9]} 13. Raxd1 {[%clk 0:02:40]} 13... h6 {[%clk 0:01:56.9]} 14.
Bxf6 {[%clk 0:02:37.5]} 14... Bxf6 {[%clk 0:01:57.8]} 15. Nd5 {[%clk 0:02:37.5]}
15... Bd8 {[%clk 0:01:55.1]} 16. b3 {[%clk 0:02:34.9]} 16... Ne7 {[%clk
0:01:51.8]} 17. Nec3 {[%clk 0:02:30.9]} 17... c6 {[%clk 0:01:48.1]} 18. Nxe7
{[%clk 0:02:29.9]} 18... Bxe7 {[%clk 0:01:49]} 19. f4 {[%clk 0:02:16.7]} 19...
e4 {[%clk 0:01:40.9]} 20. Rfe1 {[%clk 0:02:11.3]} 20... Bb4 {[%clk 0:01:35.3]}
21. Rc1 {[%clk 0:02:09.5]} 21... Be6 {[%clk 0:01:21.3]} 22. Red1 {[%clk
0:02:02.7]} 22... Rad8 {[%clk 0:01:20.3]} 23. Ne2 {[%clk 0:01:53.3]} 23... Kg7
{[%clk 0:01:12.2]} 24. Kf1 {[%clk 0:01:53]} 24... Kf6 {[%clk 0:01:09.8]} 25. Nd4
{[%clk 0:01:51.7]} 25... Bc8 {[%clk 0:01:04.5]} 26. Ke2 {[%clk 0:01:46.8]} 26...
Bc5 {[%clk 0:01:04.2]} 27. Nc2 {[%clk 0:01:46.4]} 27... a5 {[%clk 0:01:00]} 28.
Ne3 {[%clk 0:01:42.7]} 28... Be6 {[%clk 0:00:59]} 29. Rxd8 {[%clk 0:01:36.5]}
29... Rxd8 {[%clk 0:00:58.6]} 30. Rd1 {[%clk 0:01:36]} 30... Rg8 {[%clk
0:00:48.7]} 31. Bh3 {[%clk 0:01:28.7]} 31... h5 {[%clk 0:00:45.2]} 32. Nf1
{[%clk 0:01:14.1]} 32... a4 {[%clk 0:00:36.9]} 33. Rb1 {[%clk 0:01:06.6]} 33...
axb3 {[%clk 0:00:34.2]} 34. axb3 {[%clk 0:01:03.3]} 34... Ra8 {[%clk 0:00:34.7]}
35. Rb2 {[%clk 0:00:55.6]} 35... Bd4 {[%clk 0:00:27.2]} 36. Rd2 {[%clk 0:00:52]}
36... c5 {[%clk 0:00:26.4]} 37. Ne3 {[%clk 0:00:47.6]} 37... Ra3 {[%clk
0:00:24.4]} 38. Nc2 {[%clk 0:00:38.5]} 38... Rxb3 {[%clk 0:00:09.6]} 39. Nxd4
{[%clk 0:00:38.3]} 39... cxd4 {[%clk 0:00:10.5]} 40. Rxd4 {[%clk 0:00:38.4]}
40... Rb2+ {[%clk 0:00:10.1]} 41. Rd2 {[%clk 0:00:32.8]} 41... Bxc4+ {[%clk
0:00:09.3]} 42. Ke3 {[%clk 0:00:32.3]} 42... Rxd2 {[%clk 0:00:09.1]} 43. Kxd2
{[%clk 0:00:32.4]} 43... b5 {[%clk 0:00:08.3]} 44. Kc3 {[%clk 0:00:32.6]} 44...
e3 {[%clk 0:00:08.4]} 45. Bg2 {[%clk 0:00:28.2]} 45... e2 {[%clk 0:00:06.2]} 46.
Kd2 {[%clk 0:00:27.4]} 46... b4 {[%clk 0:00:06.2]} 47. Bf3 {[%clk 0:00:16.5]}
47... b3 {[%clk 0:00:06.5]} 48. Bxh5 {[%clk 0:00:15.5]} 48... b2 {[%clk
0:00:06.3]} 49. Bxe2 {[%clk 0:00:14.1]} 49... b1=Q {[%clk 0:00:05.5]} 50. Bxc4
{[%clk 0:00:14]} 50... Qb2+ {[%clk 0:00:05.8]} 51. Ke3 {[%clk 0:00:13.5]} 51...
Qxh2 {[%clk 0:00:06.6]} 52. Bd3 {[%clk 0:00:13.9]} 52... Qxg3+ {[%clk
0:00:06.6]} 53. Kd2 {[%clk 0:00:14.8]} 53... Qxf4+ {[%clk 0:00:06.8]} 54. Kc3
{[%clk 0:00:15.7]} 54... Ke5 {[%clk 0:00:06.9]} 55. Bc2 {[%clk 0:00:15.7]} 55...
Qd4+ {[%clk 0:00:06.5]} 56. Kb3 {[%clk 0:00:14.8]} 56... f4 {[%clk 0:00:07.4]}
57. Bh7 {[%clk 0:00:13.4]} 57... Qe3+ {[%clk 0:00:07.4]} 58. Kc4 {[%clk
0:00:12.7]} 58... f3 {[%clk 0:00:08.3]} 59. Bd3 {[%clk 0:00:11.7]} 59... f2
{[%clk 0:00:09.2]} 60. Bf1 {[%clk 0:00:09.6]} 60... Qd4+ {[%clk 0:00:09.3]} 61.
Kb3 {[%clk 0:00:08.3]} 61... Qc5 {[%clk 0:00:09.5]} 62. Kb2 {[%clk 0:00:07.7]}
62... Kd4 {[%clk 0:00:10.4]} 63. Be2 {[%clk 0:00:07.2]} 63... Qb4+ {[%clk
0:00:10.5]} 64. Kc1 {[%clk 0:00:07.1]} 64... Kc3 {[%clk 0:00:10.6]} 65. Kd1
{[%clk 0:00:06.2]} 65... Qb1# {[%clk 0:00:10.5]} 0-1

[Event "*** SCC Grand Prix: Titled Tuesday Blitz"]
[Site "Chess.com"]
[Date "2020.10.06"]
[Round "5"]
[White "Gerasimenyuk_Miha"]
[Black "Harry_Rakkel"]
[Result "0-1"]
[WhiteElo "2416"]
[BlackElo "2580"]
[TimeControl "180+1"]
[EndTime "10:58:14 PDT"]
[Termination "Harry_Rakkel won by resignation"]

1. d4 {[%clk 0:02:59.4]} 1... Nf6 {[%clk 0:02:59.3]} 2. Nf3 {[%clk 0:02:59.8]}
2... b6 {[%clk 0:02:59]} 3. Bg5 {[%clk 0:03:00.1]} 3... Ne4 {[%clk 0:02:54.8]}
4. Bh4 {[%clk 0:03:00]} 4... Bb7 {[%clk 0:02:53.5]} 5. e3 {[%clk 0:03:00.3]}
5... d6 {[%clk 0:02:41.1]} 6. Nbd2 {[%clk 0:02:59.8]} 6... Nd7 {[%clk
0:02:38.9]} 7. Nxe4 {[%clk 0:02:58.6]} 7... Bxe4 {[%clk 0:02:38.4]} 8. Bd3
{[%clk 0:02:59.1]} 8... Bb7 {[%clk 0:02:36.8]} 9. c3 {[%clk 0:02:58.2]} 9... h6
{[%clk 0:02:32.1]} 10. Qc2 {[%clk 0:02:57.9]} 10... g5 {[%clk 0:02:29.4]} 11.
Bg3 {[%clk 0:02:57.8]} 11... e6 {[%clk 0:02:29.4]} 12. O-O-O {[%clk 0:02:55.9]}
12... Nf6 {[%clk 0:02:11.5]} 13. e4 {[%clk 0:02:51.7]} 13... Nh5 {[%clk
0:02:10.4]} 14. e5 {[%clk 0:02:48.6]} 14... Qd7 {[%clk 0:02:07.2]} 15. exd6
{[%clk 0:02:39.2]} 15... cxd6 {[%clk 0:02:06]} 16. Kb1 {[%clk 0:02:36.7]} 16...
O-O-O {[%clk 0:01:59.7]} 17. Be4 {[%clk 0:02:31.3]} 17... f5 {[%clk 0:01:43.9]}
18. Bxb7+ {[%clk 0:02:25.9]} 18... Qxb7 {[%clk 0:01:44.8]} 19. h4 {[%clk
0:02:21]} 19... g4 {[%clk 0:01:40.7]} 20. Ne1 {[%clk 0:02:16.6]} 20... f4 {[%clk
0:01:22.5]} 21. Bh2 {[%clk 0:02:09.5]} 21... Qf7 {[%clk 0:01:16.8]} 22. f3
{[%clk 0:01:57.1]} 22... g3 {[%clk 0:01:13]} 23. Bg1 {[%clk 0:01:57.1]} 23... d5
{[%clk 0:01:09.6]} 24. Nd3 {[%clk 0:01:55.4]} 24... Bd6 {[%clk 0:01:07.7]} 25.
Re1 {[%clk 0:01:51.2]} 25... Kb7 {[%clk 0:01:05.2]} 26. a4 {[%clk 0:01:46.9]}
26... Rhe8 {[%clk 0:01:04.2]} 27. Ne5 {[%clk 0:01:46.3]} 27... Qf5 {[%clk
0:00:59.1]} 28. Kc1 {[%clk 0:01:36.6]} 28... Qxc2+ {[%clk 0:00:47]} 29. Kxc2
{[%clk 0:01:36.6]} 29... Rc8 {[%clk 0:00:42.9]} 30. Kd3 {[%clk 0:01:29.5]} 30...
Ng7 {[%clk 0:00:37.4]} 31. Nf7 {[%clk 0:01:04.6]} 31... Nf5 {[%clk 0:00:28.2]}
32. h5 {[%clk 0:01:00.2]} 32... Bf8 {[%clk 0:00:23.5]} 33. Ne5 {[%clk
0:00:50.5]} 33... a6 {[%clk 0:00:22.9]} 34. Ng6 {[%clk 0:00:50]} 34... Bd6
{[%clk 0:00:20.3]} 35. Re5 {[%clk 0:00:49.9]} 35... Bxe5 {[%clk 0:00:18.6]} 36.
dxe5 {[%clk 0:00:48.9]} 36... Rc4 {[%clk 0:00:19]} 37. Bd4 {[%clk 0:00:46.2]}
37... Rxa4 {[%clk 0:00:17.1]} 38. Nxf4 {[%clk 0:00:45.6]} 38... Nxd4 {[%clk
0:00:16.6]} 39. cxd4 {[%clk 0:00:45.6]} 39... Rb4 {[%clk 0:00:17.2]} 40. Rh3
{[%clk 0:00:40.9]} 40... Rxb2 {[%clk 0:00:16]} 41. Rxg3 {[%clk 0:00:41.1]} 41...
a5 {[%clk 0:00:15.6]} 42. Kc3 {[%clk 0:00:38.1]} 42... Rb5 {[%clk 0:00:14.3]}
43. Rg6 {[%clk 0:00:37]} 43... a4 {[%clk 0:00:14.1]} 44. Rxe6 {[%clk 0:00:20.9]}
44... Rc8+ {[%clk 0:00:11.1]} 45. Kd2 {[%clk 0:00:19]} 45... a3 {[%clk
0:00:11.7]} 46. Re7+ {[%clk 0:00:11.7]} 46... Ka6 {[%clk 0:00:11.7]} 47. Ne6
{[%clk 0:00:09.8]} 47... a2 {[%clk 0:00:12]} 48. Nc7+ {[%clk 0:00:10.1]} 48...
Rxc7 {[%clk 0:00:11.9]} 49. Rxc7 {[%clk 0:00:09.3]} 49... a1=Q {[%clk
0:00:12.4]} 50. Ke3 {[%clk 0:00:09.7]} 50... Qe1+ {[%clk 0:00:11.7]} 51. Kf4
{[%clk 0:00:09.9]} 51... Qh4+ {[%clk 0:00:10.8]} 52. g4 {[%clk 0:00:09.4]} 52...
Rb3 {[%clk 0:00:10.2]} 53. Kf5 {[%clk 0:00:09.2]} 53... Qg5+ {[%clk 0:00:09.7]}
54. Ke6 {[%clk 0:00:09.2]} 54... Rxf3 {[%clk 0:00:10.2]} 55. Kxd5 {[%clk
0:00:09.4]} 55... Rd3 {[%clk 0:00:09.4]} 56. Rc8 {[%clk 0:00:09.1]} 56... Qxg4
{[%clk 0:00:09.1]} 57. Ra8+ {[%clk 0:00:08.8]} 57... Kb7 {[%clk 0:00:08.9]} 58.
Rf8 {[%clk 0:00:08.8]} 58... Qxd4+ {[%clk 0:00:08.6]} 59. Ke6 {[%clk 0:00:09.3]}
59... Qd7+ {[%clk 0:00:09.5]} 60. Kf6 {[%clk 0:00:09.8]} 60... Rf3+ {[%clk
0:00:10]} 0-1

[Event "*** SCC Grand Prix: Titled Tuesday Blitz"]
[Site "Chess.com"]
[Date "2020.10.06"]
[Round "5"]
[White "HrvojeZagreb"]
[Black "Ranindu2003"]
[Result "0-1"]
[WhiteElo "2139"]
[BlackElo "2594"]
[TimeControl "180+1"]
[EndTime "10:58:15 PDT"]
[Termination "Ranindu2003 won on time"]

1. d4 {[%clk 0:03:00.7]} 1... Nf6 {[%clk 0:02:59.2]} 2. Bf4 {[%clk 0:02:59.7]}
2... e6 {[%clk 0:02:58.1]} 3. e3 {[%clk 0:02:59.5]} 3... d5 {[%clk 0:02:58.2]}
4. Nf3 {[%clk 0:02:58.4]} 4... c5 {[%clk 0:02:58.7]} 5. Nc3 {[%clk 0:02:56.7]}
5... a6 {[%clk 0:02:58.2]} 6. a3 {[%clk 0:02:54.5]} 6... Nc6 {[%clk 0:02:57]} 7.
Ne5 {[%clk 0:02:43.3]} 7... Bd6 {[%clk 0:02:48.1]} 8. Nxc6 {[%clk 0:02:36.5]}
8... bxc6 {[%clk 0:02:49]} 9. Bxd6 {[%clk 0:02:35.8]} 9... Qxd6 {[%clk
0:02:49.9]} 10. Be2 {[%clk 0:02:18]} 10... O-O {[%clk 0:02:47.1]} 11. Na4 {[%clk
0:02:13.2]} 11... cxd4 {[%clk 0:02:44.8]} 12. exd4 {[%clk 0:02:14.1]} 12... e5
{[%clk 0:02:44.5]} 13. dxe5 {[%clk 0:02:09]} 13... Qxe5 {[%clk 0:02:45.4]} 14.
O-O {[%clk 0:02:08.4]} 14... Re8 {[%clk 0:02:34]} 15. Bf3 {[%clk 0:02:05.9]}
15... Qg5 {[%clk 0:02:33.3]} 16. c4 {[%clk 0:01:39.8]} 16... Rb8 {[%clk
0:02:30.8]} 17. b4 {[%clk 0:01:32.6]} 17... Be6 {[%clk 0:02:13.8]} 18. cxd5
{[%clk 0:01:26]} 18... Nxd5 {[%clk 0:02:04.1]} 19. Nc5 {[%clk 0:01:21.7]} 19...
a5 {[%clk 0:02:02.5]} 20. bxa5 {[%clk 0:01:11.6]} 20... Bh3 {[%clk 0:01:55.5]}
21. Kh1 {[%clk 0:01:02]} 21... Nf4 {[%clk 0:01:38.3]} 22. gxh3 {[%clk
0:00:47.5]} 22... Qxc5 {[%clk 0:01:37.7]} 23. Qd2 {[%clk 0:00:41.1]} 23... Nxh3
{[%clk 0:01:23.1]} 24. Rac1 {[%clk 0:00:34.8]} 24... Qf5 {[%clk 0:01:19]} 25.
Bxc6 {[%clk 0:00:29.8]} 25... Red8 {[%clk 0:01:17.8]} 26. Qe3 {[%clk 0:00:23.2]}
26... Rd6 {[%clk 0:01:14.4]} 27. Bg2 {[%clk 0:00:20.6]} 27... Nf4 {[%clk
0:01:12.1]} 28. Rfd1 {[%clk 0:00:16.3]} 28... Rxd1+ {[%clk 0:01:10.4]} 29. Rxd1
{[%clk 0:00:15.9]} 29... Nxg2 {[%clk 0:01:10.8]} 30. Kxg2 {[%clk 0:00:15.3]}
30... Qxa5 {[%clk 0:01:11.2]} 31. Qd2 {[%clk 0:00:12.9]} 31... Qa8+ {[%clk
0:01:10]} 32. Qd5 {[%clk 0:00:11.5]} 32... Qxa3 {[%clk 0:01:07.4]} 33. Rd3
{[%clk 0:00:06.9]} 33... Qa8 {[%clk 0:01:06.1]} 34. f3 {[%clk 0:00:04.5]} 34...
g6 {[%clk 0:01:02.7]} 35. Qxa8 {[%clk 0:00:02.8]} 35... Rxa8 {[%clk 0:01:03.5]}
36. Rd7 {[%clk 0:00:03.3]} 36... Ra6 {[%clk 0:01:03.4]} 37. Kg3 {[%clk
0:00:03.9]} 37... Kg7 {[%clk 0:01:03.8]} 38. h3 {[%clk 0:00:04.5]} 38... Re6
{[%clk 0:01:03.4]} 39. h4 {[%clk 0:00:04.7]} 39... Kf6 {[%clk 0:01:03.2]} 40.
Rc7 {[%clk 0:00:05]} 40... Re7 {[%clk 0:01:02.9]} 41. Rc6+ {[%clk 0:00:05.2]}
41... Ke5 {[%clk 0:01:02.8]} 42. Rc8 {[%clk 0:00:05.9]} 42... f5 {[%clk
0:01:02.1]} 43. Rc4 {[%clk 0:00:06]} 43... Kf6 {[%clk 0:01:00.7]} 44. Rb4 {[%clk
0:00:05.3]} 44... h6 {[%clk 0:00:56.6]} 45. Rb6+ {[%clk 0:00:05.4]} 45... Re6
{[%clk 0:00:55.5]} 46. Rb5 {[%clk 0:00:06.3]} 46... g5 {[%clk 0:00:55.2]} 47.
hxg5+ {[%clk 0:00:05.4]} 47... hxg5 {[%clk 0:00:56.1]} 48. Rc5 {[%clk
0:00:05.8]} 48... Re5 {[%clk 0:00:53.2]} 49. Rc6+ {[%clk 0:00:06.2]} 49... Re6
{[%clk 0:00:53.6]} 50. Rc5 {[%clk 0:00:06.5]} 50... Ra6 {[%clk 0:00:53.5]} 51.
Rb5 {[%clk 0:00:06.7]} 51... Kg6 {[%clk 0:00:50.3]} 52. Rc5 {[%clk 0:00:06.8]}
52... Ra1 {[%clk 0:00:45.4]} 53. Rc6+ {[%clk 0:00:06.5]} 53... Kh5 {[%clk
0:00:45.1]} 54. Rc8 {[%clk 0:00:05.3]} 54... f4+ {[%clk 0:00:41.2]} 55. Kg2
{[%clk 0:00:03.8]} 55... Ra2+ {[%clk 0:00:41.4]} 56. Kh3 {[%clk 0:00:03.8]}
56... Rf2 {[%clk 0:00:39.3]} 57. Rc3 {[%clk 0:00:03.9]} 57... Re2 {[%clk
0:00:29.4]} 58. Rd3 {[%clk 0:00:03.9]} 58... Re3 {[%clk 0:00:28.4]} 59. Rxe3
{[%clk 0:00:01.4]} 59... fxe3 {[%clk 0:00:28.6]} 60. Kg2 {[%clk 0:00:02.3]}
60... g4 {[%clk 0:00:17.2]} 61. fxg4+ {[%clk 0:00:01.1]} 61... Kxg4 {[%clk
0:00:18.1]} 0-1

[Event "*** SCC Grand Prix: Titled Tuesday Blitz"]
[Site "Chess.com"]
[Date "2020.10.06"]
[Round "5"]
[White "Abdimalik_Abdisalimov"]
[Black "Savagelittlemole"]
[Result "0-1"]
[WhiteElo "2739"]
[BlackElo "2599"]
[TimeControl "180+1"]
[EndTime "10:58:21 PDT"]
[Termination "Savagelittlemole won on time"]

1. d4 {[%clk 0:02:58.7]} 1... Nf6 {[%clk 0:02:59.6]} 2. c4 {[%clk 0:02:58.4]}
2... g6 {[%clk 0:02:59.6]} 3. f3 {[%clk 0:02:58.5]} 3... Bg7 {[%clk 0:02:59.4]}
4. e4 {[%clk 0:02:59]} 4... O-O {[%clk 0:02:59.4]} 5. Nc3 {[%clk 0:02:59.4]}
5... d6 {[%clk 0:03:00]} 6. Nge2 {[%clk 0:02:59.7]} 6... c5 {[%clk 0:03:00.5]}
7. d5 {[%clk 0:02:59.9]} 7... e6 {[%clk 0:02:57.6]} 8. Ng3 {[%clk 0:02:59.8]}
8... exd5 {[%clk 0:02:57.6]} 9. cxd5 {[%clk 0:03:00.7]} 9... a6 {[%clk
0:02:57.9]} 10. a4 {[%clk 0:03:00.8]} 10... Re8 {[%clk 0:02:55.8]} 11. Be2
{[%clk 0:03:01.2]} 11... h5 {[%clk 0:02:50.9]} 12. O-O {[%clk 0:03:00.9]} 12...
h4 {[%clk 0:02:48.4]} 13. Nh1 {[%clk 0:03:01.4]} 13... Nbd7 {[%clk 0:02:47.3]}
14. Nf2 {[%clk 0:03:01.2]} 14... Rb8 {[%clk 0:02:26.2]} 15. Bg5 {[%clk
0:02:58.3]} 15... Qb6 {[%clk 0:02:16.2]} 16. Rb1 {[%clk 0:02:56.5]} 16... Nh5
{[%clk 0:02:12.7]} 17. f4 {[%clk 0:02:30.6]} 17... Ndf6 {[%clk 0:02:11.4]} 18.
Qd2 {[%clk 0:01:59.9]} 18... c4 {[%clk 0:01:54.7]} 19. Kh1 {[%clk 0:01:59.4]}
19... Ng3+ {[%clk 0:01:21.8]} 20. hxg3 {[%clk 0:01:54.6]} 20... hxg3 {[%clk
0:01:22.7]} 21. Nh3 {[%clk 0:01:37.2]} 21... Bxh3 {[%clk 0:01:17.7]} 22. Bxf6
{[%clk 0:01:21.4]} 22... Bd7 {[%clk 0:01:02.4]} 23. Bh4 {[%clk 0:01:18.2]} 23...
Bd4 {[%clk 0:00:58.8]} 24. f5 {[%clk 0:00:57.3]} 24... Kg7 {[%clk 0:00:46.2]}
25. fxg6 {[%clk 0:00:54.8]} 25... fxg6 {[%clk 0:00:47.1]} 26. Qf4 {[%clk
0:00:43.3]} 26... Rf8 {[%clk 0:00:33.3]} 27. Qxg3 {[%clk 0:00:42.6]} 27... Rh8
{[%clk 0:00:23.4]} 28. Qg5 {[%clk 0:00:33.3]} 28... Rxh4+ {[%clk 0:00:23.2]} 29.
Qxh4 {[%clk 0:00:32]} 29... Rh8 {[%clk 0:00:23.9]} 30. Qxh8+ {[%clk 0:00:28.6]}
30... Kxh8 {[%clk 0:00:24.8]} 31. Rf8+ {[%clk 0:00:26.5]} 31... Kg7 {[%clk
0:00:23.5]} 32. Rbf1 {[%clk 0:00:26.2]} 32... Qxb2 {[%clk 0:00:18.6]} 33. R8f7+
{[%clk 0:00:10.3]} 33... Kh6 {[%clk 0:00:18.3]} 34. Rxd7 {[%clk 0:00:10.6]}
34... Bxc3 {[%clk 0:00:17.3]} 35. Bxc4 {[%clk 0:00:09.3]} 35... Be5 {[%clk
0:00:14.5]} 36. Rdf7 {[%clk 0:00:04.1]} 36... Qd2 {[%clk 0:00:13]} 37. R1f3
{[%clk 0:00:02]} 37... Qe1+ {[%clk 0:00:12.5]} 38. Bf1 {[%clk 0:00:02.6]} 38...
b5 {[%clk 0:00:09.5]} 39. Rh3+ {[%clk 0:00:03.5]} 39... Kg5 {[%clk 0:00:09.5]}
40. axb5 {[%clk 0:00:04.4]} 40... axb5 {[%clk 0:00:10]} 41. Rff3 {[%clk
0:00:04.9]} 41... Bf4 {[%clk 0:00:09.7]} 42. Kg1 {[%clk 0:00:05.8]} 42... Qd2
{[%clk 0:00:08.2]} 43. Rb3 {[%clk 0:00:06.7]} 43... Qe1 {[%clk 0:00:08]} 44.
Rhf3 {[%clk 0:00:06.9]} 44... Kg4 {[%clk 0:00:07.9]} 45. g3 {[%clk 0:00:06.6]}
45... Be5 {[%clk 0:00:07.2]} 46. Kg2 {[%clk 0:00:07.1]} 46... Bd4 {[%clk
0:00:07.5]} 47. Rbd3 {[%clk 0:00:04.7]} 47... Qc1 {[%clk 0:00:06.8]} 48. Rf4+
{[%clk 0:00:03.9]} 48... Kg5 {[%clk 0:00:06.7]} 49. Be2 {[%clk 0:00:03.1]} 49...
Qb2 {[%clk 0:00:06.4]} 50. Kf1 {[%clk 0:00:02.3]} 50... Bc5 {[%clk 0:00:06.2]}
51. Rg4+ {[%clk 0:00:02.3]} 51... Kf6 {[%clk 0:00:06.1]} 52. e5+ {[%clk
0:00:03.2]} 52... Kxe5 {[%clk 0:00:05.5]} 53. Rf4 {[%clk 0:00:03.3]} 53... Qc1+
{[%clk 0:00:04.3]} 54. Rd1 {[%clk 0:00:03.4]} 54... Qc3 {[%clk 0:00:04.1]} 55.
Rd3 {[%clk 0:00:03.4]} 55... Qc1+ {[%clk 0:00:04.1]} 56. Bd1 {[%clk 0:00:03.6]}
56... Qb2 {[%clk 0:00:03.1]} 57. Rff3 {[%clk 0:00:03.1]} 57... Qc1 {[%clk
0:00:02.2]} 58. Ke1 {[%clk 0:00:02.5]} 58... Qb2 {[%clk 0:00:02]} 59. Kf1 {[%clk
0:00:01.4]} 59... Bb4 {[%clk 0:00:02.9]} 0-1

[Event "*** SCC Grand Prix: Titled Tuesday Blitz"]
[Site "Chess.com"]
[Date "2020.10.06"]
[Round "5"]
[White "Klavdia_Nik"]
[Black "esskeettit"]
[Result "0-1"]
[WhiteElo "2152"]
[BlackElo "2421"]
[TimeControl "180+1"]
[EndTime "10:58:21 PDT"]
[Termination "esskeettit won on time"]

1. Nf3 {[%clk 0:03:00.9]} 1... c5 {[%clk 0:02:59.7]} 2. c4 {[%clk 0:03:01.1]}
2... Nc6 {[%clk 0:03:00.3]} 3. d4 {[%clk 0:02:59.6]} 3... cxd4 {[%clk
0:02:59.8]} 4. Nxd4 {[%clk 0:02:59.2]} 4... g6 {[%clk 0:03:00.7]} 5. Nc3 {[%clk
0:02:58.1]} 5... Bg7 {[%clk 0:02:58.3]} 6. Nb3 {[%clk 0:02:53.9]} 6... Nf6
{[%clk 0:02:57.9]} 7. e4 {[%clk 0:02:54.1]} 7... d6 {[%clk 0:02:57.9]} 8. Be2
{[%clk 0:02:54.1]} 8... O-O {[%clk 0:02:58.2]} 9. O-O {[%clk 0:02:54.4]} 9...
Be6 {[%clk 0:02:58.8]} 10. Be3 {[%clk 0:02:40.2]} 10... Rc8 {[%clk 0:02:58.6]}
11. Rc1 {[%clk 0:02:30.8]} 11... Ne5 {[%clk 0:02:52.6]} 12. Nd2 {[%clk
0:02:23.3]} 12... Nxc4 {[%clk 0:02:42.8]} 13. Nxc4 {[%clk 0:02:17.2]} 13... Bxc4
{[%clk 0:02:42.7]} 14. Bxc4 {[%clk 0:02:10]} 14... Rxc4 {[%clk 0:02:43.6]} 15.
Qb3 {[%clk 0:02:05.7]} 15... Rc7 {[%clk 0:01:53.6]} 16. Bxa7 {[%clk 0:01:58.8]}
16... Qd7 {[%clk 0:01:53.7]} 17. Bd4 {[%clk 0:01:52.8]} 17... Rfc8 {[%clk
0:01:51.4]} 18. a4 {[%clk 0:01:38.4]} 18... Rc4 {[%clk 0:01:50.2]} 19. Rcd1
{[%clk 0:01:32.8]} 19... Ne8 {[%clk 0:01:38.3]} 20. Bxg7 {[%clk 0:01:31.1]}
20... Nxg7 {[%clk 0:01:39.2]} 21. Nd5 {[%clk 0:01:21.5]} 21... R4c6 {[%clk
0:01:04.7]} 22. Nb6 {[%clk 0:01:17.1]} 22... Rxb6 {[%clk 0:01:00.8]} 23. Qxb6
{[%clk 0:01:16.1]} 23... Qxa4 {[%clk 0:01:01.2]} 24. Qxb7 {[%clk 0:01:14.2]}
24... Re8 {[%clk 0:01:00.8]} 25. Ra1 {[%clk 0:01:08.8]} 25... Qc2 {[%clk
0:01:00.3]} 26. Ra8 {[%clk 0:01:04.5]} 26... h5 {[%clk 0:00:54.7]} 27. Rxe8+
{[%clk 0:00:55.9]} 27... Nxe8 {[%clk 0:00:55.6]} 28. Qxe7 {[%clk 0:00:56.1]}
28... Ng7 {[%clk 0:00:53]} 29. Qxd6 {[%clk 0:00:43.5]} 29... Qxb2 {[%clk
0:00:52.7]} 30. Qd8+ {[%clk 0:00:38.8]} 30... Kh7 {[%clk 0:00:51.8]} 31. Qe7
{[%clk 0:00:39.4]} 31... Qb3 {[%clk 0:00:51.2]} 32. h3 {[%clk 0:00:37.7]} 32...
Kg8 {[%clk 0:00:51.3]} 33. Rc1 {[%clk 0:00:37.1]} 33... Ne6 {[%clk 0:00:50.6]}
34. Qf6 {[%clk 0:00:30.2]} 34... Qb7 {[%clk 0:00:46.5]} 35. Rd1 {[%clk
0:00:20.5]} 35... Qxe4 {[%clk 0:00:31.9]} 36. Rd7 {[%clk 0:00:16.8]} 36... Qb1+
{[%clk 0:00:31.8]} 37. Kh2 {[%clk 0:00:15.4]} 37... Qb8+ {[%clk 0:00:32.4]} 38.
g3 {[%clk 0:00:14.8]} 38... Qe8 {[%clk 0:00:32.2]} 39. Re7 {[%clk 0:00:14]}
39... Qf8 {[%clk 0:00:32.5]} 40. Rxe6 {[%clk 0:00:12.3]} 40... fxe6 {[%clk
0:00:31.8]} 41. Qxg6+ {[%clk 0:00:12.8]} 41... Qg7 {[%clk 0:00:30.9]} 42. Qxe6+
{[%clk 0:00:12.9]} 42... Kh7 {[%clk 0:00:30.6]} 43. Qf5+ {[%clk 0:00:13]} 43...
Kh6 {[%clk 0:00:30.7]} 44. g4 {[%clk 0:00:12.8]} 44... Qc7+ {[%clk 0:00:28.5]}
45. Kg2 {[%clk 0:00:12.8]} 45... hxg4 {[%clk 0:00:27]} 46. hxg4 {[%clk
0:00:12.4]} 46... Qc6+ {[%clk 0:00:27.3]} 47. Qf3 {[%clk 0:00:12.4]} 47... Qd6
{[%clk 0:00:24.3]} 48. Qe3+ {[%clk 0:00:10.6]} 48... Kg6 {[%clk 0:00:23.4]} 49.
f4 {[%clk 0:00:09.8]} 49... Qb4 {[%clk 0:00:20.5]} 50. f5+ {[%clk 0:00:08.1]}
50... Kg7 {[%clk 0:00:19.1]} 51. Kg3 {[%clk 0:00:06.9]} 51... Qd6+ {[%clk
0:00:15.5]} 52. Qf4 {[%clk 0:00:06.7]} 52... Qd3+ {[%clk 0:00:15]} 53. Kh4
{[%clk 0:00:06.8]} 53... Qd1 {[%clk 0:00:12.5]} 54. Qe5+ {[%clk 0:00:04.6]}
54... Kg8 {[%clk 0:00:09.9]} 55. Qe6+ {[%clk 0:00:04.1]} 55... Kf8 {[%clk
0:00:08.8]} 56. Qf6+ {[%clk 0:00:03.9]} 56... Kg8 {[%clk 0:00:08.1]} 57. Qg6+
{[%clk 0:00:04]} 57... Kf8 {[%clk 0:00:07.5]} 58. Qf6+ {[%clk 0:00:02.8]} 58...
Kg8 {[%clk 0:00:07.8]} 59. Kg5 {[%clk 0:00:02.5]} 59... Qd2+ {[%clk 0:00:04.1]}
60. Kg6 {[%clk 0:00:02.7]} 60... Qh6+ {[%clk 0:00:04.1]} 0-1